[Event "GER-ch Youth-U16 2022"]
[Site "Willingen"]
[Date "2022.06.08"]
[Round "5.4"]
[White "Trushko, Andrii"]
[Black "Laux, Dominik"]
[Result "0-1"]
[ECO "A43"]
[WhiteElo "1897"]
[BlackElo "2263"]
[Annotator "TA"]
[PlyCount "130"]
[EventDate "2022.06.05"]
[EventType "swiss"]
[EventRounds "9"]
[EventCountry "GER"]
[SourceTitle "playchess.com"]
[Source "ChessBase"]
[SourceQuality "1"]
[TimeControl "40/4500+30:900+30"]

{[%evp 13,130,42,45,3,5,-16,-16,-37,-26,-27,-15,-48,-45,-46,-45,-45,-45,-45,-46,-40,-41,-64,-18,-20,-14,0,0,-6,-29,-14,-17,-70,-62,-86,-91,-80,-61,-70,-69,-128,-116,-112,-27,-113,-138,-127,-87,-81,-49,-42,-51,-71,-35,-39,-34,-182,-166,-171,-192,-235,-118,-121,-116,-108,-79,-79,-75,-115,-54,-67,-52,-108,-116,-249,-129,-293,-210,-358,-354,-382,-349,-760,-735,-687,-627,-1027,-872,-1046,-864,-7645,-6043,-7604,-7567,-7349,-7349,-6700,-6355,-5103,-2105,-4694,-3390,-1787,-1716,-1433,-1277,-8503,-7339,-29976,-4983,-6057,-5143,-6383,-6029,-29984,-29985,-29985,-29986,-29986,-29987]} 1. d4 {[%emt 0:00:00]} c5 {[%emt 0:00:00]} 2. d5 {[%emt 0:00:00]} Nf6 {[%emt 0:00:00]} 3. c4 {[%emt 0:00:00]} g6 {[%emt 0:00:00]} 4. Nc3 {[%emt 0:00:00]} Bg7 {[%emt 0:00:00]} 5. e4 {[%emt 0:00:00]} d6 {[%emt 0:00:00]} 6. Bd3 {[%emt 0:00:00]} O-O {[%emt 0:00:00]} 7. Nge2 {[%emt 0:00:00]} e6 {[%emt 0:00:00]} 8. f3 {[%emt 0:00:00] E70: King's Indian: Miscellaneous lines with 4 e4, including 5 Nge2 and 5 Bd3 0-0 6 Nge2.} exd5 {[%emt 0:00:00]} 9. exd5 {[%emt 0:00:00]} (9. Nxd5 Nxd5 10. cxd5 f5 $15) 9... Nbd7 {[%emt 0:00:00]} 10. Bg5 {[%emt 0:00:00] The position is equal.} Re8 {[%emt 0:04:57] [#]} 11. O-O $146 {[%emt 0:00:00]} ({Predecessor:} 11. f4 Qb6 12. Qd2 Ng4 13. h3 Ne3 14. f5 Nxf5 15. Bxf5 gxf5 16. O-O-O Ne5 17. b3 {0-1 (24) Huelsdunk,H (1691)-Simon,E (1889) Frankfurt 2005}) 11... Ne5 {[%emt 0:01:39]} 12. Qd2 {[%emt 0:01:25]} a6 {[%emt 0:03:09][%cal Ob7b5]} 13. a4 {[%emt 0:02:45]} h6 {[%emt 0:01:24]} 14. Bf4 {[%emt 0:01:39]} Nxd3 {[%emt 0:03:57]} 15. Qxd3 {[%emt 0:00:07]} Bf5 {[%emt 0:00:15]} 16. Qd2 {[%emt 0:00:09]} g5 {[%emt 0:01:46]} 17. Be3 {[%emt 0:00:25][%cal Oh2h4]} Qa5 {[%emt 0:07:48]} (17... Bg6 $15) 18. h4 $11 {[%emt 0:03:25]} Qb4 {[%emt 0:03:21]} 19. hxg5 {[%emt 0:00:47]} hxg5 {[%emt 0:00:12]} 20. Ng3 {[%emt 0:02:52]} Bg6 {[%emt 0:02:27][%cal Of6g4]} 21. Bxg5 {[%emt 0:03:54]} Qxc4 {[%emt 0:02:01]} 22. Qf4 {[%emt 0:04:39]} ({White should play} 22. Rf2 $11) 22... Qd4+ $15 {[%emt 0:06:26]} 23. Qxd4 {[%emt 0:00:50]} cxd4 {[%emt 0:00:10]} 24. Bxf6 {[%emt 0:00:32]} Bxf6 {[%emt 0:01:10]} 25. Nce4 {[%emt 0:00:18]} Bh4 {[%emt 0:04:44]} 26. Kh2 {[%emt 0:02:12]} ({Better is} 26. Rad1 $15) 26... Re5 $17 {[%emt 0:03:09]} 27. Rad1 {[%emt 0:08:45]} Rxd5 {[%emt 0:06:37]} (27... Kg7 $1 $17 {And now ...Rh8 would win.} 28. Rxd4 Rh8) 28. Kh3 {[%emt 0:01:12]} (28. Ne2 $1 $11 {keeps the balance.}) 28... Be7 {[%emt 0:01:20][%cal Bh4e7,Be7f6,Bf6e5][%mdl 32]} 29. f4 {[%emt 0:09:29]} Kg7 {[%emt 0:05:21]} 30. Nc3 {[%emt 0:03:12]} Rc5 {[%emt 0:00:50]} (30... dxc3 $6 31. Rxd5 Rh8+ 32. Kg4 Rh4+ 33. Kf3 cxb2 34. Ne4 $11) 31. Rxd4 {[%emt 0:00:58]} Bf6 {[%emt 0:01:43]} 32. Rd5 {[%emt 0:02:45]} Rc4 {[%emt 0:06:50]} 33. Kg4 {[%emt 0:01:57]} Rh8 {[%emt 0:05:30]} 34. Rh1 {[%emt 0:01:34] Against Rh4+} (34. Nf5+ $1 $15 Bxf5+ 35. Rxf5) 34... Rxh1 $19 {[%emt 0:02:10]} 35. Nxh1 {[%emt 0:00:03] [#]} Be5 $1 {[%emt 0:01:54] A strong pair of Bishops.} 36. g3 {[%emt 0:04:02]} Kf6 {[%emt 0:03:51]} (36... Bxc3 $19 37. bxc3 Be4 38. Rg5+ Kf8) 37. Nf2 $17 {[%emt 0:02:20]} Ke6 {[%emt 0:01:25]} 38. Rd2 {[%emt 0:01:27]} Bf5+ {[%emt 0:02:13]} 39. Kh5 {[%emt 0:01:23]} Bxc3 {[%emt 0:00:48]} 40. bxc3 {[%emt 0:00:08]} Rxc3 {[%emt 0:01:18][%mdl 4096] Endgame KRB-KRN} (40... Rc8 $17 {( -> ...Rh8+)} 41. Ng4 Rxc3 42. Re2+ Kd7 43. Nf6+ Kc6) 41. g4 $15 {[%emt 0:15:42]} Bc2 {[%emt 0:15:58]} 42. f5+ {[%emt 0:01:08] White is now going downhill.} (42. a5 $15) 42... Ke5 $17 {[%emt 0:04:06] Strongly threatening ...b5. Black is more active.} 43. Kg5 {[%emt 0:02:34] [#]} (43. Kh6 $17 {was called for.}) 43... d5 {[%emt 0:00:00]} ({Not} 43... Bxa4 44. Re2+ Kd5 45. Rd2+ Kc6 46. Kf6 $11) (43... b5 $1 $19 {[%cal Rb5a4]} 44. axb5 axb5) 44. Kh6 $2 {[%emt 0:00:00]} (44. Re2+ $17 Be4 45. a5) 44... d4 {[%emt 0:00:00]} ({Avoid the trap} 44... Bxa4 $2 45. Kg7 $19) 45. Kg7 {[%emt 0:00:00]} (45. a5 {was the only defense.}) 45... Rc7 $19 {[%emt 0:00:00]} ({Stronger than} 45... Bxa4 46. Kxf7 Bc2 47. Kg7 $19) 46. f6 {[%emt 0:00:00]} Kf4 {[%emt 0:00:00] White must now prevent ...Ke3.} 47. Rxd4+ $2 {[%emt 0:00:00]} (47. Nd1 d3 48. g5) 47... Ke3 {[%emt 0:00:00]} 48. Rb4 {[%emt 0:00:00]} Kxf2 {[%emt 0:00:00] KRB-KR} 49. a5 {[%emt 0:00:00]} Kf3 {[%emt 0:00:00]} 50. g5 {[%emt 0:00:00]} Bg6 {[%emt 0:00:00]} 51. Kh6 {[%emt 0:00:00]} Rd7 {[%emt 0:00:00]} 52. Rb2 {[%emt 0:00:00]} Ke3 {[%emt 0:00:00]} 53. Rb3+ {[%emt 0:00:00]} Kd4 {[%emt 0:00:00]} 54. Rb4+ {[%emt 0:00:00]} Kc5 {[%emt 0:00:00]} 55. Rb6 {[%emt 0:00:00]} Be4 {[%emt 0:00:00]} 56. Kg7 {[%emt 0:00:00]} Bd3 {[%emt 0:00:00]} 57. Kf8 {[%emt 0:01:19]} Bg6 {[%emt 0:00:00]} 58. Kg7 {[%emt 0:02:47]} Kd4 {[%emt 0:00:14] ...Kc4 is the strong threat.} 59. Kh6 {[%emt 0:01:25]} Kc3 {[%emt 0:01:44]} 60. Re6 {[%emt 0:00:39]} Rd5 {[%emt 0:01:08]} (60... fxe6 $142 61. Kxg6 Rd5 62. Kf7 Rxg5 63. Kxe6 Rg2 64. f7 Rf2 65. Kd7 Rxf7+ 66. Ke6 Rf1 67. Ke5 Ra1 68. Ke6 Rxa5 69. Kd7 b5 70. Kc7 b4 71. Kb6 Rf5 72. Kc6 b3 73. Kd6 b2 74. Ke7 b1=Q 75. Ke6 Qe4+ 76. Kd6 Qd5+ 77. Ke7 Rf7+ 78. Ke8 Qd7#) 61. Re8 {[%emt 0:00:44]} Rxa5 {[%emt 0:00:37]} 62. Rg8 {[%emt 0:00:06]} Kd4 {[%emt 0:02:29] Hoping for ...Rd5.} 63. Rxg6 {[%emt 0:00:19]} fxg6 {[%emt 0:00:02] Black mates.} 64. Kxg6 {[%emt 0:01:55]} Ke4 {[%emt 0:00:19]} 65. Kh6 {[%emt 0:00:29]} Rf5 {[%emt 0:00:22] Weighted Error Value: White=0.66/Black=0.18 (very precise)} 0-1

[Event "GER-ch Youth-U16 2022"]
[Site "Willingen"]
[Date "2022.06.08"]
[Round "5.5"]
[White "Mimkes, Antal"]
[Black "Foerster-Yialamas, Lucas"]
[Result "0-1"]
[ECO "A45"]
[WhiteElo "1696"]
[BlackElo "2117"]
[Annotator "TA"]
[PlyCount "74"]
[EventDate "2022.06.05"]
[EventType "swiss"]
[EventRounds "9"]
[EventCountry "GER"]
[SourceTitle "playchess.com"]
[Source "ChessBase"]
[SourceQuality "1"]
[TimeControl "40/4500+30:900+30"]

{[%evp 9,74,-59,-66,-74,-87,-79,-90,-72,-35,-61,-25,-46,-37,-131,-149,-160,-45,-105,-33,-35,-27,-37,-36,-66,-40,-63,-47,-157,-158,-239,-160,-208,-115,-177,-139,-139,-141,-142,-135,-144,-132,-162,-158,-221,-239,-260,-183,-194,-184,-192,-182,-250,-241,-264,-221,-258,-261,-241,-243,-375,-366,-444,-417,-481,-479,-788,-474]} 1. d4 {[%emt 0:00:00]} Nf6 {[%emt 0:00:00]} 2. g4 {[%emt 0:00:00]} Nxg4 {[%emt 0:00:00]} 3. e4 {[%emt 0:00:00]} d6 {[%emt 0:00:00]} 4. h3 {[%emt 0:00:00]} Nf6 {[%emt 0:00:00]} 5. Nc3 {[%emt 0:00:00]} c6 {[%emt 0:00:00]} 6. Nf3 {[%emt 0:00:00] A45: Trompowsky Attack.} g6 {[%emt 0:00:00]} 7. Be3 {[%emt 0:00:00]} Bg7 {[%emt 0:00:00]} 8. Qd2 {[%emt 0:00:00] [#] Black is better.} Qa5 $146 {[%emt 0:01:15]} ({Predecessor:} 8... b5 9. Bd3 Qa5 10. b4 Qxb4 11. Ke2 Qa5 12. a3 Nbd7 13. e5 dxe5 14. dxe5 Nh5 {½-½ (44) Gibbins,W-Barton corr 1969}) 9. Be2 {[%emt 0:00:00]} h6 {[%emt 0:05:20]} 10. O-O-O {[%emt 0:11:13]} Be6 {[%emt 0:04:05]} 11. d5 {[%emt 0:05:28]} ({Better is} 11. a3 $1 $15) 11... cxd5 $17 {[%emt 0:21:31]} (11... Nxe4 12. Nxe4 Qxd2+ 13. Kxd2 (13. Bxd2 Bxd5 14. Nc3 Be6 $16) (13. Nfxd2 cxd5 14. Ng3 d4 $11) (13. Rxd2 Bxd5 14. Nc3 Bxc3 $16) 13... Bxd5 14. Nc3 $16) 12. exd5 {[%emt 0:00:46] [#]} Bd7 {[%emt 0:05:09]} (12... Nxd5 $1 $17 {[%mdl 512]} 13. Nxd5 Qxa2) 13. Nd4 {[%emt 0:16:50]} (13. Rhe1 $15) 13... Na6 {[%emt 0:05:36]} (13... Nxd5 $17 14. Nb3 Bxc3 $1 15. Nxa5 Bxd2+ 16. Bxd2 b6) 14. Nb3 $15 {[%emt 0:01:52]} Qd8 {[%emt 0:03:36]} 15. Bf3 {[%emt 0:05:13]} h5 {[%emt 0:01:14]} 16. Ne4 {[%emt 0:04:54]} Bf5 {[%emt 0:08:02]} (16... Rc8 $5 {[%cal Rd7f5]} 17. Kb1 O-O $15) 17. Nxf6+ {[%emt 0:01:46]} Bxf6 {[%emt 0:00:08]} 18. Bd4 {[%emt 0:01:58] [#]} ({White should play} 18. Nd4 $1 $15) 18... Rc8 $1 $36 {[%emt 0:14:49][%mdl 2048] White is under strong pressure.} 19. Bc3 {[%emt 0:09:19]} (19. Na1 $17 {was worth a try.}) 19... e5 {[%emt 0:00:57] And now ...Bg5 would win.} 20. Kb1 {[%emt 0:01:16]} ({Don't go for} 20. dxe6 $2 Bg5 21. Bc6+ (21. exf7+ $2 Kf8 $19) 21... Rxc6 $19) (20. Qe2 $17) 20... Qc7 {[%emt 0:04:31]} ({Black should try} 20... Nc5 $19 {Threatens to win with ...Na4.} 21. Nxc5 Rxc5) 21. Be2 {[%emt 0:01:58]} (21. Rde1 $17) 21... Nc5 {[%emt 0:02:21]} 22. Nxc5 {[%emt 0:02:18]} Qxc5 {[%emt 0:00:07]} 23. Bd3 {[%emt 0:04:36]} Bxd3 {[%emt 0:01:37]} 24. Qxd3 {[%emt 0:00:33]} Qc4 {[%emt 0:00:10]} 25. Qe3 {[%emt 0:02:08] [#]} O-O $1 {[%emt 0:00:22]} 26. Qc1 {[%emt 0:07:43]} (26. Rhe1 $17 {was called for.}) 26... Qb5 $19 {[%emt 0:01:11] White must now prevent ...Rxc3.} 27. Bd2 {[%emt 0:00:43]} Rfd8 {[%emt 0:00:50]} (27... Qxd5 28. Bh6 Qc6 29. Bxf8 Kxf8 30. Rhe1 $15) 28. Bg5 {[%emt 0:01:05]} Bxg5 {[%emt 0:00:30]} 29. Qxg5 {[%emt 0:00:06]} Qc4 {[%emt 0:00:47]} 30. Qd2 {[%emt 0:02:55]} (30. Rd2 $142) 30... Rc5 {[%emt 0:01:04]} 31. Rhg1 {[%emt 0:00:45]} Kh7 {[%emt 0:00:24]} 32. c3 {[%emt 0:02:07]} Rdc8 {[%emt 0:00:53]} ({Inferior is} 32... Ra5 33. b3 Qe4+ 34. Qd3 Qxd3+ 35. Rxd3 $17) 33. Rg3 {[%emt 0:01:04]} b5 {[%emt 0:00:40][%cal Bb7b5,Bb5b4,Bb4c3][%mdl 32]} ({Stronger than} 33... Ra5 34. b3 Qe4+ 35. Kb2) 34. Ka1 {[%emt 0:01:26]} (34. Qd3 {is a better defense.}) 34... b4 {[%emt 0:00:22]} 35. b3 {[%emt 0:01:19]} bxc3 {[%emt 0:00:10] aiming for ...Qe4.} 36. Qc2 {[%emt 0:00:23] Prevents Qe4.} Qf4 {[%emt 0:01:03]} 37. Rdg1 {[%emt 0:01:01]} (37. Kb1 $142) 37... Qd2 {Weighted Error Value: White=0.43/Black=0.18 (very precise)} 0-1

[Event "GER-ch Youth-U16 2022"]
[Site "Willingen"]
[Date "2022.06.08"]
[Round "5.6"]
[White "Chassard, Cedric"]
[Black "Ohler, Julius"]
[Result "0-1"]
[ECO "B12"]
[WhiteElo "2051"]
[BlackElo "2011"]
[Annotator "TA"]
[PlyCount "62"]
[EventDate "2022.06.05"]
[EventType "swiss"]
[EventRounds "9"]
[EventCountry "GER"]
[SourceTitle "playchess.com"]
[Source "ChessBase"]
[SourceQuality "1"]
[TimeControl "40/4500+30:900+30"]

{[%evp 15,62,16,33,46,23,31,25,50,48,38,34,16,11,28,53,68,66,67,75,87,129,86,70,39,54,51,72,50,26,50,40,0,0,0,0,0,0,-805,-789,-842,-829,-832,-817,-29983,-29984,-29963,-5904,-29998,154]} 1. e4 {[%emt 0:00:00]} c6 {[%emt 0:00:00]} 2. d4 {[%emt 0:00:00]} d5 {[%emt 0:00:00]} 3. e5 {[%emt 0:00:00]} Bf5 {[%emt 0:00:00]} 4. Nf3 {[%emt 0:00:00]} e6 {[%emt 0:00:00]} 5. Be2 {[%emt 0:00:00]} Ne7 {[%emt 0:00:00]} 6. O-O {[%emt 0:00:00]} c5 {[%emt 0:00:00]} 7. Be3 {[%emt 0:00:00]} cxd4 {[%emt 0:00:00]} 8. Nxd4 {[%emt 0:00:00]} Nbc6 {[%emt 0:00:00]} 9. Bb5 {[%emt 0:00:00] B12: Caro-Kann: Advance Variation.} a6 {[%emt 0:00:00]} 10. Bxc6+ {[%emt 0:00:00]} Nxc6 {[%emt 0:04:10]} 11. Nxf5 {[%emt 0:00:00] White has an edge.} exf5 {[%emt 0:00:05]} 12. c3 {[%emt 0:00:00] Prevents d4.} Be7 {[%emt 0:03:49]} 13. Nd2 {[%emt 0:00:00]} Nxe5 {[%emt 0:05:09]} 14. Bd4 {[%emt 0:01:41] [#]} Nc6 $146 {[%emt 0:08:50]} ({Predecessor:} 14... f6 15. Qb3 Qd7 16. Rfd1 Nc6 17. Nf1 Na5 18. Qc2 O-O 19. Rd3 f4 20. Rad1 Qf5 {½-½ (20) Karjakin,S (2753)-Dreev,A (2670) St Petersburg 2018}) 15. Bxg7 {[%emt 0:04:17]} Rg8 {[%emt 0:00:11]} 16. Bd4 {[%emt 0:05:12]} Nxd4 {[%emt 0:02:47]} 17. cxd4 {[%emt 0:00:02]} Qd6 {[%emt 0:01:07]} 18. Qb3 {[%emt 0:07:00]} O-O-O {[%emt 0:00:51]} 19. Rfe1 {[%emt 0:04:58]} Kb8 {[%emt 0:10:40]} 20. Nf3 {[%emt 0:05:16]} Bf6 {[%emt 0:03:42]} 21. Ne5 {[%emt 0:02:17] Prevents Rg4.} (21. Qd3 $5 {[%cal Rd3f5]}) 21... Bxe5 {[%emt 0:00:35]} 22. Rxe5 {[%emt 0:00:31]} Rg4 {[%emt 0:00:18][%cal Bg8g4,Bg4d4,Bd4b4,Bb4f4][%mdl 32]} 23. Rae1 {[%emt 0:15:33]} ({Much weaker is} 23. Rxf5 Qg6 24. Qf3 Rxg2+ $1 25. Qxg2 Qxf5 26. Qg3+ Ka7 $17) 23... Rxd4 {[%emt 0:01:16]} 24. Rxf5 {[%emt 0:02:23]} Rb4 {[%emt 0:03:13]} 25. Qc2 {[%emt 0:04:20]} Qg6 $40 {[%emt 0:18:27][%mdl 128] Hoping for ...Rf4. Black mounts an attack.} 26. b3 $2 {[%emt 0:08:08][%mdl 8192] [#]} (26. g3 $11) 26... Rf4 $1 $19 {[%emt 0:04:31]} ({Less strong is} 26... Rg8 27. g3 $14) 27. Rc1 {[%emt 0:03:00] [#]} Rg8 $1 {[%emt 0:01:42][%csl Gg8][%cal Rg6g2] Active counter play!} 28. Qc7+ {[%emt 0:02:00]} (28. g3 Rxf5) 28... Ka8 {[%emt 0:00:07][%csl Gg8][%cal Rg6g2]} 29. Qc8+ {[%emt 0:02:23]} Rxc8 {[%emt 0:00:09]} ({And not} 29... Ka7 30. Qxg8 Rxf5 31. Qxg6 fxg6 32. Rc7 $11) 30. Rxc8+ {[%emt 0:00:01]} Ka7 {[%emt 0:00:07]} 31. Rxf4 {[%emt 0:00:13]} Qb6 $2 {[%mdl 32768] Weighted Error Value: White=1.14/Black=0.06 (flawless) . Loss on time!?} (31... Qb1+ {mates} 32. Rc1 Qxc1#) 0-1

[Event "GER-ch Youth-U16 2022"]
[Site "Willingen"]
[Date "2022.06.08"]
[Round "5.7"]
[White "Hommer, Jeremy"]
[Black "Bungarten, Jona"]
[Result "1/2-1/2"]
[ECO "C47"]
[WhiteElo "2152"]
[BlackElo "1843"]
[Annotator "TA"]
[PlyCount "55"]
[EventDate "2022.06.05"]
[EventType "swiss"]
[EventRounds "9"]
[EventCountry "GER"]
[SourceTitle "playchess.com"]
[Source "ChessBase"]
[SourceQuality "1"]
[TimeControl "40/4500+30:900+30"]

{[%evp 16,55,2,-5,12,8,12,13,11,18,15,17,37,16,22,18,15,9,12,4,6,2,11,-2,-3,-5,10,4,25,0,0,0,0,0,0,0,0,0,0,0,0,0]} 1. e4 {[%emt 0:00:00]} e5 {[%emt 0:00:00]} 2. Nf3 {[%emt 0:00:00]} Nc6 {[%emt 0:00:00]} 3. Nc3 {[%emt 0:00:00]} Nf6 {[%emt 0:00:00]} 4. d4 {[%emt 0:00:00]} exd4 {[%emt 0:00:00]} 5. Nxd4 {[%emt 0:00:00]} Bb4 {[%emt 0:00:00]} 6. Nxc6 {[%emt 0:00:00]} bxc6 {[%emt 0:00:00]} 7. Bd3 {[%emt 0:00:00]} d5 {[%emt 0:00:00]} 8. Bd2 {[%emt 0:00:00]} O-O {[%emt 0:00:00]} 9. O-O {[%emt 0:00:00]} Re8 {[%emt 0:00:00] [#] C47: Scotch Four Knights and Four Knights with 4 g3.} 10. Nxd5 $1 {[%emt 0:00:00]} Nxd5 {[%emt 0:00:00]} 11. exd5 {[%emt 0:00:00]} Bxd2 {[%emt 0:00:00]} 12. Qxd2 {[%emt 0:00:00]} cxd5 {[%emt 0:00:00]} 13. Rfe1 {[%emt 0:00:00] [#]} Re6 $146 {[%emt 0:03:34]} ({Predecessor:} 13... Rxe1+ 14. Rxe1 Be6 15. b4 c5 16. bxc5 Rc8 17. Qb4 Qc7 18. f4 a5 19. Qd4 Qxc5 20. Qxc5 Rxc5 {1-0 (35) Harika,D (2517)-Tregubov,P (2541) Chess.com INT 2022}) 14. b4 {[%emt 0:01:16]} Qd6 {[%emt 0:03:32]} 15. Rad1 {[%emt 0:34:26]} Bd7 {[%emt 0:07:56]} 16. Rxe6 {[%emt 0:04:52]} Bxe6 {[%emt 0:00:32]} 17. Be2 {[%emt 0:08:11]} Rd8 {[%emt 0:09:45][%cal Ba8d8,Bd8d6,Bd6b6][%mdl 32]} 18. Qd4 {[%emt 0:00:31]} Qb6 {[%emt 0:01:40]} 19. Bf3 {[%emt 0:05:02]} (19. b5 {is interesting.} Re8 20. h3 g6 21. c4) 19... Qxd4 {[%emt 0:07:22]} 20. Rxd4 $11 {[%emt 0:00:01][%mdl 4096] Endgame KRB-KRB} Rd6 {[%emt 0:00:19]} 21. b5 {[%emt 0:03:32] Hoping for Ra4.} Kf8 {[%emt 0:07:18]} 22. Kf1 {[%emt 0:03:12]} (22. Ra4 $5 {[%cal Ra4a7]}) 22... a6 {[%emt 0:03:43] The position is equal.} 23. a4 {[%emt 0:03:02][%cal Oc2c4]} axb5 {[%emt 0:00:24]} 24. axb5 {[%emt 0:00:18]} Ke7 {[%emt 0:00:22]} 25. Ke2 {[%emt 0:01:21]} Rb6 {[%emt 0:01:51]} 26. Bxd5 {[%emt 0:02:00] Threatens to win with Bc6.} Rxb5 {[%emt 0:00:09]} 27. Bxe6 {[%emt 0:00:25]} Kxe6 {[%emt 0:00:07]} 28. Kd3 {[%emt 0:06:07] An even fight not without its subleties.  Weighted Error Value: White=0.06 (flawless) /Black=0.06 (flawless)} 1/2-1/2

[Event "GER-ch Youth-U16 2022"]
[Site "Willingen"]
[Date "2022.06.08"]
[Round "5.8"]
[White "Bui, Bao Anh Le"]
[Black "Heinrich, John"]
[Result "1-0"]
[ECO "B31"]
[WhiteElo "2127"]
[BlackElo "2011"]
[Annotator "TA"]
[PlyCount "77"]
[EventDate "2022.06.05"]
[EventType "swiss"]
[EventRounds "9"]
[EventCountry "GER"]
[SourceTitle "playchess.com"]
[Source "ChessBase"]
[SourceQuality "1"]
[TimeControl "40/4500+30:900+30"]

{[%evp 22,77,14,22,36,39,35,32,47,21,14,10,14,-8,-13,-18,17,0,0,0,0,0,0,0,29,0,0,-50,-51,-79,-77,-154,-11,-12,0,0,0,0,0,0,0,-31,-10,-15,21,22,291,264,596,514,758,756,717,715,29991,29992,29995,700]} 1. e4 {[%emt 0:00:00]} c5 {[%emt 0:00:00]} 2. Nf3 {[%emt 0:00:00]} Nc6 {[%emt 0:00:00]} 3. Bb5 {[%emt 0:00:00]} g6 {[%emt 0:00:00]} 4. O-O {[%emt 0:00:00]} Bg7 {[%emt 0:00:00]} 5. c3 {[%emt 0:00:00]} Nf6 {[%emt 0:00:00]} 6. Re1 {[%emt 0:00:00]} O-O {[%emt 0:00:00]} 7. d4 {[%emt 0:00:00]} cxd4 {[%emt 0:00:00]} 8. cxd4 {[%emt 0:00:00]} d5 {[%emt 0:00:00]} 9. e5 {[%emt 0:00:00]} Ne4 {[%emt 0:00:00]} 10. Nc3 {[%emt 0:03:40]} Bf5 {[%emt 0:00:00]} 11. Nh4 {[%emt 0:05:30]} Nxc3 {[%emt 0:20:12]} 12. bxc3 {[%emt 0:00:35]} Be6 {[%emt 0:07:39] B31: Sicilian: 2...Nc6 3 Bb5 g6.} 13. Bxc6 {[%emt 0:10:24]} bxc6 {[%emt 0:00:07]} 14. Ba3 {[%emt 0:00:07]} Qd7 {[%emt 0:02:12] White is slightly better.} 15. Qa4 {[%emt 0:10:33] [#]} Bh6 $146 {[%emt 0:06:22]} ({Predecessor:} 15... Rfb8 16. Rab1 Bh6 17. Rb3 Qc7 18. Reb1 Bf8 19. Bc5 g5 20. Nf3 Bf5 21. Rxb8 Rxb8 22. Rxb8 Qxb8 {½-½ (30) Sorokin,A (2110)-Ilenko,A (2014) Novokuznetsk 2012}) 16. Qc2 {[%emt 0:29:22]} Rfb8 {[%emt 0:07:17]} 17. g3 {[%emt 0:05:23]} Rb5 {[%emt 0:10:56]} 18. f4 {[%emt 0:05:41]} g5 {[%emt 0:02:27]} 19. fxg5 {[%emt 0:00:52]} Bxg5 {[%emt 0:00:06]} 20. Nf3 {[%emt 0:00:04]} Bf5 {[%emt 0:01:10]} 21. Qe2 {[%emt 0:11:37]} Bh6 {[%emt 0:00:09]} 22. Nh4 {[%emt 0:01:30] Hoping for Qh5.} Be4 {[%emt 0:02:30]} 23. Rf1 {[%emt 0:00:12]} (23. Qh5 $5 {[%cal Rh5h6]} Bf8 24. c4 $11 (24. Rf1 Qe6 $11)) 23... Qe6 {[%emt 0:02:32]} 24. Rf2 {[%emt 0:00:04]} (24. g4 $11) 24... Rab8 $15 {[%emt 0:00:28][%cal Oc6c5]} 25. Raf1 {[%emt 0:00:05]} Rb1 {[%emt 0:00:37]} 26. Bb4 {[%emt 0:01:02]} (26. g4 $142) 26... Rxf1+ {[%emt 0:00:53]} ({Black should try} 26... Bc1 $1 $17 {[%cal Oa7a5] ...a5! is the strong threat.} 27. Nf5 Bxf5 28. Rxf5 {[#]} Be3+ $1 29. Kg2 Rxf1 30. Qxf1 Bxd4 $1 31. Rg5+ Kh8) 27. Rxf1 $11 {[%emt 0:00:10][%cal Bf2f1,Bf1e1,Be1e8,Be8e7][%mdl 32]} Kh8 {[%emt 0:06:14]} 28. Ng2 {[%emt 0:01:00]} f5 {[%emt 0:12:01]} 29. exf6 {[%emt 0:00:35]} exf6 {[%emt 0:00:09]} 30. Qf2 {[%emt 0:00:37]} Kg7 {[%emt 0:02:30]} 31. Nh4 {[%emt 0:01:11]} Re8 {[%emt 0:01:48] Threatens to win with ...Bd3.} (31... Bg5 $5 {[%cal Rg5h4]} 32. Ng2 Qh3 $11) 32. Re1 {[%emt 0:00:30][%cal Oh4f5] And now Nf5+! would win.} Qg4 {[%emt 0:00:38] Prevents Nf5+.} 33. Nf5+ $1 {[%emt 0:00:28]} Bxf5 $4 {[%emt 0:01:17][%mdl 8192] This costs Black the game.} (33... Kg6 $1 $11 34. Nxh6 Qh5) 34. Rxe8 $18 {[%emt 0:00:26]} Be4 $2 {[%emt 0:00:31]} (34... a5 {is a better chance.} 35. Qe1 (35. Bxa5 Be4 $11) 35... Bg5) 35. Bf8+ {[%emt 0:00:20]} Kf7 {[%emt 0:01:18] ( -> ...Qd1+)} 36. Re7+ {[%emt 0:00:05]} ({And not} 36. Bxh6 Kxe8 37. Qxf6 Qd1+ 38. Kf2 Qc2+ 39. Ke1 Qb1+ 40. Kf2 Qc2+ 41. Ke3 Qc1+ 42. Kf2 Qc2+ $11) 36... Kg6 {[%emt 0:00:11]} 37. Bxh6 {[%emt 0:00:09] Rg7+ would kill now.} Kxh6 {[%emt 0:00:26]} 38. Qxf6+ {[%emt 0:00:09]} Bg6 {[%emt 0:00:09]} 39. Qf4+ {[%emt 0:00:03] Weighted Error Value: White=0.13 (very precise) /Black=0.71} (39. Re5 $142 Qd1+ 40. Kg2 Qe2+ 41. Rxe2 a5 42. Re5 a4 43. Qf8#) 1-0